bitfinex/quotes_ETHUSD_20250804
["timestamp","ask_amount","ask_price","bid_price","bid_amount"]
[1754300850452,4.298,3556.0,3555.9,5.81222757]
[1754300851082,4.298,3556.0,3555.9,5.95302757]
[1754300851274,4.298,3556.0,3555.9,6.82956196]
[1754300851475,4.298,3556.0,3555.9,4.0173344]
[1754300851704,4.298,3556.0,3555.9,3.00000001]
[1754300853878,7.11014848,3556.0,3555.9,1e-08]
[1754300854075,7.66014848,3556.0,3555.9,1e-08]
[1754300854387,9.86697105,3556.0,3555.9,1e-08]
[1754300855621,7.66014848,3556.0,3555.9,1e-08]
[1754300860428,9.00701768,3556.0,3555.9,1e-08]
[1754300862311,42.00701768,3556.0,3555.9,1e-08]
[1754300864038,42.14781768,3556.0,3555.9,1e-08]
[1754300867710,49.19781768,3556.0,3555.9,1e-08]
[1754300868520,52.06606475,3556.0,3555.9,1e-08]
[1754300872396,3.36246484,3555.6,3555.5,1e-08]
[1754300872602,62.25538847,3555.6,3555.5,1e-08]
[1754300872810,63.51302248,3555.6,3555.5,1e-08]
[1754300873924,62.22023266,3555.6,3555.5,1e-08]
[1754300874133,65.08847973,3555.6,3555.5,1e-08]
[1754300874331,67.03046148,3555.6,3555.5,1e-08]
[1754300874534,66.63667973,3555.6,3555.5,1e-08]
[1754300875834,67.93994136,3555.6,3555.5,1e-08]
[1754300876643,2.81389301,3553.8,3552.9,2.81452753]
[1754300876833,2.81389301,3553.8,3552.7,3.66041781]
[1754300876834,7.10803221,3553.7,3553.0,0.64749453]
[1754300877143,4.294,3553.6,3552.6,5.81479681]
[1754300877357,4.294,3553.6,3552.8,2.81463393]
[1754300877521,4.294,3553.6,3552.7,3.0]
[1754300877713,4.294,3553.6,3552.9,2.81453492]
[1754300878042,4.294,3553.6,3553.0,0.86292869]
[1754300878556,4.294,3553.6,3553.1,3.0]
[1754300878722,4.294,3553.6,3553.0,3.86292869]
[1754300879043,4.294,3553.6,3553.0,3.67745126]
[1754300879241,4.294,3553.6,3553.0,0.86292869]
[1754300879456,4.294,3553.6,3553.2,2.8143536]
[1754300879839,4.294,3553.6,3553.3,3.0]
[1754300880042,4.294,3553.6,3553.2,3.0]
[1754300880763,4.293,3553.5,3553.0,3.0]
[1754300880918,6.761,3554.3,3553.6,3.0]
[1754300881119,4.293,3554.2,3553.7,0.58140766]
[1754300881514,7.10658973,3554.2,3553.7,0.58140766]
[1754300881733,7.10658973,3554.2,3553.4,5.81417843]
[1754300882059,4.293,3554.2,3553.6,3.0]
[1754300882260,4.293,3554.2,3553.9,2.81377988]
[1754300882585,4.293,3554.2,3554.1,2.81365183]
[1754300882895,4.293,3554.2,3554.1,6.09501701]
[1754300883663,6.761,3554.3,3554.2,5.81357267]
[1754300883862,7.05,3555.5,3554.2,5.81357267]
[1754300883863,9.86256927,3555.5,3554.6,2.81323121]
[1754300884068,4.297,3555.4,3554.6,2.81323121]
[1754300884225,0.1408,3555.1,3554.5,0.1408]
[1754300884422,4.297,3555.0,3554.6,0.29541897]
[1754300884917,4.297,3555.0,3554.5,0.1408]
[1754300886034,7.11001593,3555.0,3554.1,0.28136518]
[1754300886223,0.1408,3554.7,3554.2,0.1408]
[1754300886423,4.296,3554.6,3554.2,0.1408]
[1754300887266,4.296,3554.6,3554.3,3.0]
[1754300888165,4.296,3554.6,3554.2,0.1408]
[1754300888468,4.296,3554.6,3554.3,3.0]
[1754300888626,4.296,3554.6,3554.3,5.81343705]
[1754300888822,4.296,3554.6,3554.3,3.0]
[1754300889358,4.296,3554.6,3554.2,0.1408]
[1754300890168,4.296,3554.6,3553.4,0.845533]
[1754300890169,0.1408,3554.3,3553.8,0.1408]
[1754300890468,0.1408,3553.9,3553.3,0.1408]
[1754300890664,4.295,3553.8,3553.5,3.0]
[1754300890964,4.295,3553.8,3553.4,2.81413909]
[1754300891155,4.295,3553.8,3553.3,2.95505453]
[1754300891470,4.295,3553.8,3553.3,1.01794853]
[1754300891625,4.295,3553.8,3553.3,0.1408]
[1754300891827,4.295,3553.8,3553.4,2.81415367]
[1754300892250,4.295,3553.8,3553.5,2.81412557]
[1754300892666,4.295,3553.8,3553.4,2.81418267]
[1754300893641,4.295,3553.8,3553.5,2.81412691]
[1754300894266,4.295,3553.8,3553.0,0.002]
[1754300894454,0.1408,3553.6,3553.3,3.0]
[1754300894971,0.1408,3553.6,3553.4,2.81419552]
[1754300895270,0.1408,3553.6,3553.4,2.81420528]
[1754300895572,0.1408,3553.6,3553.1,2.955232]
[1754300895573,0.1408,3553.6,3553.5,2.81412691]
[1754300895778,4.4358,3553.8,3553.7,2.81396853]
[1754300895950,9.57348057,3555.6,3553.7,0.28139685]
[1754300896148,0.1408,3554.6,3554.3,2.81344255]
[1754300896467,4.296,3554.5,3554.4,2.81341435]
[1754300896652,4.296,3554.5,3554.3,2.81342488]
[1754300897060,4.296,3554.5,3554.2,2.81354425]
[1754300897462,4.296,3554.5,3554.3,2.81349163]
[1754300897667,4.296,3554.5,3554.3,3.39029304]
[1754300898174,4.296,3554.5,3554.4,2.81341435]
[1754300898484,4.296,3554.5,3554.3,3.39026485]
[1754300898642,4.296,3554.5,3554.4,2.81341435]
[1754300898843,4.296,3554.5,3554.3,3.5310669]
[1754300899038,4.296,3554.5,3554.4,0.63447106]
[1754300899254,4.296,3554.5,3554.4,3.44788541]
[1754300899754,4.296,3554.5,3554.4,0.63447106]
[1754300900696,4.296,3554.5,3554.3,0.1408]
[1754300902069,4.4368,3554.5,3554.0,0.1408]
[1754300902269,0.1408,3554.2,3553.9,3.0]
[1754300903169,0.1408,3554.2,3553.8,3.0]
[1754300903478,0.1408,3554.2,3553.7,0.1408]
[1754300903677,0.1408,3554.2,3553.8,2.81387227]
[1754300903881,0.1408,3554.2,3553.8,3.0]
[1754300904295,0.1408,3554.2,3553.2,2.81435015]
[1754300904462,0.1408,3554.2,3553.6,0.1408]
[1754300904792,0.1408,3554.2,3553.6,2.95484137]
[1754300906096,2.81358497,3554.2,3553.3,3.24075733]
[1754300906298,0.1408,3553.9,3553.4,3.1408]
[1754300906588,4.293,3553.8,3553.4,2.95499989]
[1754300906770,4.293,3553.8,3553.4,3.1408]
[1754300906965,4.293,3553.8,3553.4,2.95498767]
[1754300907167,4.293,3553.8,3553.4,3.1408]
[1754300907367,4.293,3553.8,3553.3,0.42649623]
[1754300907578,4.293,3553.8,3553.4,3.0]
[1754300908516,4.293,3553.8,3553.2,3.0]
[1754300908709,0.1408,3553.6,3553.2,3.0]
[1754300908905,0.1408,3553.6,3553.2,2.81436271]
[1754300909307,0.1408,3553.6,3553.3,3.0]
[1754300909822,0.1408,3553.6,3553.1,0.1408]
[1754300910186,0.1408,3553.6,3553.3,3.0]
[1754300910393,0.1408,3553.6,3553.1,2.95524342]
[1754300910605,0.1408,3553.6,3553.1,0.1408]
[1754300911001,0.1408,3553.6,3553.0,0.1428]
[1754300911206,0.1408,3553.6,3553.1,3.0]
[1754300911991,0.1408,3553.6,3553.0,0.1428]
[1754300912208,7.1069378,3553.8,3553.0,0.002]
[1754300912411,0.1408,3553.4,3553.1,3.0]
[1754300912611,4.291,3553.3,3553.1,3.0]
[1754300913325,4.291,3553.3,3553.0,0.002]
[1754300913686,0.1408,3553.2,3553.0,0.002]
[1754300915553,4.291,3553.1,3553.0,0.002]
[1754300916816,4.29,3553.1,3553.0,17.77754931]
[1754300917061,4.29,3553.1,3553.0,17.91834931]
[1754300920595,0.0351657,3554.6,3553.8,2.81381877]
[1754300920596,0.55,3554.5,3553.8,2.81381877]
[1754300920870,0.1408,3554.0,3553.8,2.81383222]
[1754300921162,6.761,3554.7,3553.9,0.02066275]
[1754300921453,0.1408,3554.3,3554.1,2.81360432]
[1754300921649,0.1408,3554.3,3554.2,2.81357267]
[1754300921853,0.1408,3554.3,3554.1,2.95443444]
[1754300921854,4.289,3554.3,3554.1,2.95443444]
[1754300922049,4.289,3554.3,3554.2,2.81357267]
[1754300924356,0.1408,3554.6,3554.4,2.8133914]
[1754300924555,0.1408,3554.6,3554.5,2.8133352]
[1754300924753,4.289,3554.6,3554.5,2.8133352]
[1754300925448,6.761,3554.7,3554.6,2.81325606]
[1754300925652,6.761,3554.7,3554.6,18.03674157]
[1754300925960,11.05,3554.7,3554.6,18.17754157]
[1754300928285,4.289,3554.7,3554.6,18.17754157]
[1754300928881,4.289,3554.7,3554.6,6.53079519]
[1754300929658,1e-08,3554.7,3554.6,6.74271852]
[1754300929856,0.001,3555.5,3555.4,2.81262305]
[1754300930175,4.291,3555.5,3555.4,3.37515644]
[1754300930687,4.291,3555.5,3555.4,3.51595644]
[1754300931497,4.291,3555.5,3555.4,0.70333339]
[1754300931655,4.291,3555.5,3555.4,3.51595644]
[1754300934498,4.291,3555.5,3555.4,6.51595644]
[1754300937061,4.286,3555.5,3555.4,6.51595644]
[1754300937258,0.001,3555.5,3555.4,6.51595644]
[1754300937596,0.001,3555.5,3555.4,7.36104244]
[1754300944375,0.001,3555.5,3555.4,4.54841939]
[1754300944583,0.001,3555.5,3555.4,7.36104244]
[1754300945313,0.001,3555.5,3555.4,4.54841939]
[1754300945518,0.001,3555.5,3555.4,7.36104244]
[1754300950723,0.001,3555.5,3555.4,18.98776417]
[1754300951422,0.001,3556.0,3555.4,18.98776417]
[1754300951423,0.001,3556.0,3555.9,5.81222756]
[1754300951727,0.001,3556.0,3555.9,18.72344194]
[1754300953604,0.001,3556.0,3555.9,7.09672021]
[1754300953809,0.001,3556.0,3555.9,18.72344194]
[1754300954012,0.001,3556.0,3555.9,4.28449265]
[1754300954324,0.001,3556.0,3555.9,3.0]
[1754300956282,0.001,3556.0,3555.9,3.1408]
[1754300957635,0.001,3556.0,3555.9,3.2816]
[1754300958909,0.001,3556.0,3555.3,2.81265196]
[1754300959110,4.4228,3555.9,3555.4,0.1408]
[1754300959923,0.1408,3555.6,3555.1,0.1408]
[1754300962017,2.95327172,3555.6,3555.1,0.1408]
[1754300962538,0.1408,3555.6,3555.0,0.1408]
[1754300963432,0.1408,3555.8,3555.4,2.81256749]
[1754300963611,4.283,3555.7,3555.5,3.23459645]
[1754300963939,4.283,3555.7,3555.5,0.28125675]
[1754300964141,4.283,3555.7,3555.6,0.1408]
[1754300964749,4.283,3555.7,3555.6,2.95326484]
[1754300964935,4.283,3555.7,3555.6,5.95326484]
[1754300965137,4.283,3555.7,3555.6,3.1408]
[1754300965342,4.283,3555.7,3555.6,3.0]
[1754300965931,4.283,3555.7,3554.9,0.845331]
[1754300966137,0.1408,3555.6,3555.1,3.1408]
[1754300966659,0.1408,3555.6,3555.1,0.1408]
[1754300967219,0.1408,3555.6,3554.9,1.23257353]
[1754300967419,4.285,3555.5,3555.4,2.95342253]
[1754300967626,4.285,3555.5,3555.4,2.81262253]
[1754300967823,4.285,3555.5,3555.4,3.51595584]
[1754300969258,4.285,3555.5,3555.4,4.36111784]
[1754300969557,4.285,3555.5,3555.4,0.1408]
[1754300970561,4.285,3555.5,3554.9,0.38724253]
[1754300970717,4.285,3555.5,3555.1,0.1408]
[1754300971558,4.285,3555.5,3555.4,0.002]
[1754300971924,4.32015679,3555.5,3555.4,0.002]
[1754300972840,4.285,3555.5,3555.4,0.002]
[1754300973661,0.1408,3555.6,3555.4,0.002]
[1754300973821,4.285,3555.5,3555.4,3.51810179]
[1754300974018,4.285,3555.5,3555.4,0.70555301]
[1754300974259,4.285,3555.5,3555.4,3.51817606]
[1754300976122,6.8978,3555.9,3555.4,3.51817606]
[1754300976458,4.285,3555.8,3555.4,2.95542305]
[1754300977659,4.285,3555.8,3555.7,2.81238574]
[1754300977835,4.285,3555.8,3555.4,0.002]
[1754300977836,4.285,3555.8,3555.6,2.95325423]
[1754300978424,4.284,3555.7,3555.6,5.95325423]
[1754300982327,4.284,3555.7,3555.6,3.1408]
[1754300982558,4.284,3555.7,3555.6,0.1408]
[1754300983080,4.284,3555.7,3555.4,0.002]
[1754300983317,4.284,3555.7,3555.5,0.1408]
[1754300983680,4.284,3555.7,3555.4,0.002]
[1754300983876,4.284,3555.7,3555.4,0.1428]
[1754300984126,4.284,3555.7,3555.6,5.81246484]
[1754300984278,4.284,3555.7,3555.6,5.95326484]
[1754300984628,0.001,3556.0,3555.9,3.0]
[1754300984810,4.285,3556.0,3555.9,3.0]
[1754300984981,4.285,3556.0,3555.9,2.81222756]
[1754300985295,4.285,3556.0,3555.7,2.81237566]
[1754300985296,4.285,3556.0,3555.8,5.81227461]
[1754300985704,4.285,3556.0,3555.9,5.81222756]
[1754300986216,0.001,3556.0,3555.9,6.82956714]
[1754300986515,4.285,3556.0,3555.9,6.82956714]
[1754300989731,0.001,3556.4,3556.3,2.81191125]
[1754300989914,4.286,3556.4,3556.3,5.81191125]
[1754300990231,4.286,3556.4,3556.3,5.95271125]
[1754300990414,4.286,3556.4,3556.3,7.11039699]
[1754300990885,0.001,3556.4,3556.3,7.11039699]
[1754300991090,4.292,3556.4,3556.3,7.11039699]
[1754301002230,4.292,3556.4,3556.3,5.95271125]
[1754301005929,0.001,3556.4,3556.3,5.95271125]
[1754301006130,4.287,3556.4,3556.3,5.95271125]
[1754301007042,0.84310947,3556.4,3556.3,5.95271125]
[1754301007252,0.001,3556.8,3556.7,2.81159501]
[1754301007454,4.288,3556.8,3556.7,6.69452928]
[1754301007762,4.288,3556.8,3556.7,6.81472261]
[1754301009369,4.288,3556.8,3556.7,5.95239501]
[1754301009940,4.288,3556.8,3556.7,6.16237775]
[1754301010441,4.29,3556.8,3556.7,6.16237775]
[1754301012976,4.29,3556.8,3556.7,7.00712575]
[1754301013767,4.29,3556.8,3556.7,6.16237775]
[1754301014069,4.29,3556.8,3556.7,7.05978363]
[1754301015592,0.001,3556.8,3556.7,7.05978363]
[1754301015887,0.1408,3557.8,3557.1,5.81127885]
[1754301015888,0.001,3557.2,3557.1,5.81127885]
[1754301016089,4.29,3557.2,3557.1,5.81127885]
[1754301016267,4.29,3557.2,3557.1,5.95207885]
[1754301016464,4.29,3557.2,3557.1,7.10957484]
[1754301016656,4.29,3557.2,3557.1,7.95426284]
[1754301019297,4.29,3557.2,3557.1,5.95207885]
[1754301023184,4.29,3557.2,3557.1,3.0]
[1754301023394,4.29,3557.2,3557.1,5.81127885]
[1754301030304,4.29,3557.2,3557.1,3.0]
[1754301031098,4.29,3557.2,3556.8,0.1408]
[1754301031271,0.5698,3557.1,3556.0,0.002]
[1754301031470,0.1408,3556.6,3556.4,0.844888]
[1754301031669,4.286,3556.5,3556.1,0.1408]
[1754301032991,0.1408,3556.3,3556.0,0.20803346]
[1754301033172,7.09775598,3556.5,3556.0,0.002]
[1754301033369,0.1408,3556.1,3556.0,0.002]
[1754301033571,4.4278,3556.1,3556.0,0.002]
[1754301033889,4.4278,3556.1,3556.0,3.002]
[1754301034094,4.4278,3556.1,3556.0,5.81414848]
[1754301034407,4.4278,3556.1,3556.0,0.002]
[1754301034602,4.287,3556.1,3556.0,2.81414848]
[1754301034774,4.287,3556.1,3556.0,6.71179151]
[1754301035106,4.287,3556.1,3556.0,3.89964303]
[1754301035303,4.287,3556.1,3556.0,3.002]
[1754301036905,4.287,3556.1,3556.0,5.81414848]
[1754301057836,4.287,3556.1,3556.0,6.65914448]
[1754301060912,4.287,3556.1,3556.0,5.81414848]
[1754301061660,4.287,3556.1,3556.0,3.002]
[1754301064145,4.287,3556.1,3556.0,5.95494848]
[1754301064335,4.287,3556.1,3556.0,8.0155181]
[1754301064740,4.287,3556.1,3556.0,5.20336962]
[1754301064913,4.287,3556.1,3556.0,5.95494848]
[1754301065454,4.287,3556.1,3556.0,3.1428]
[1754301065747,4.4278,3556.1,3556.0,3.002]
[1754301066339,4.287,3556.1,3556.0,5.81414848]
[1754301067656,4.287,3556.1,3556.0,17.44349238]
[1754301068539,4.287,3556.1,3556.0,19.50405587]
[1754301068739,4.287,3556.1,3556.0,7.87471197]
[1754301068957,4.287,3556.1,3556.0,6.65915548]
[1754301069263,4.287,3556.1,3556.0,5.81414848]
[1754301070719,4.287,3556.1,3556.0,3.002]
[1754301071045,4.287,3556.1,3556.0,0.002]
[1754301072050,7.0990694,3556.1,3556.0,0.002]
[1754301072273,5.28161408,3556.1,3556.0,0.002]
[1754301072763,8.09368348,3556.1,3556.0,0.002]
[1754301073343,8.64368348,3556.1,3556.0,0.002]
[1754301076623,10.41485365,3556.1,3556.0,0.002]
[1754301077537,8.64368348,3556.1,3556.0,0.002]
[1754301079672,7.6490694,3556.1,3556.0,0.002]
[1754301080130,9.42797964,3556.1,3556.0,0.002]
[1754301080836,24.22312057,3556.1,3556.0,0.002]
[1754301081042,23.7900282,3556.1,3556.0,0.002]
[1754301081566,9.56877964,3556.1,3556.0,0.002]
[1754301082342,10.80684911,3556.1,3556.0,0.002]
[1754301083536,17.85684911,3556.1,3556.0,0.002]
[1754301087661,16.07793887,3556.1,3556.0,0.002]
[1754301088644,17.96085616,3556.1,3556.0,0.002]
[1754301090332,6.30771729,3556.1,3556.0,0.002]
[1754301091771,21.30133709,3556.1,3556.0,0.002]
[1754301095171,24.30133709,3556.1,3556.0,0.002]
[1754301096064,12.66978669,3556.1,3556.0,0.002]
[1754301096266,24.30133709,3556.1,3556.0,0.002]
[1754301096467,27.01266405,3556.1,3556.0,0.002]
[1754301097234,33.77166405,3556.1,3556.0,0.002]
[1754301097967,22.14011365,3556.1,3556.0,0.002]
[1754301098278,13.06671729,3556.1,3556.0,0.002]
[1754301099681,13.07171729,3556.1,3556.0,0.002]
[1754301106883,6.31271729,3556.1,3556.0,0.002]
[1754301107884,2.02371729,3556.1,3556.0,0.002]
[1754301108063,6.30871729,3556.1,3556.0,0.002]
[1754301110794,6.16791729,3556.1,3556.0,3.09557774]
[1754301111466,6.16791729,3556.1,3556.0,0.28342926]
[1754301111989,6.16791729,3556.1,3556.0,0.002]
[1754301112354,6.30871729,3556.1,3556.0,0.002]
[1754301119017,9.12078669,3556.1,3556.0,0.002]
[1754301119315,21.30233709,3556.1,3556.0,0.002]
[1754301122655,9.67078669,3556.1,3556.0,0.002]
[1754301122826,11.62406466,3556.1,3556.0,0.002]
[1754301123389,23.25561506,3556.1,3556.0,0.002]
[1754301127215,11.62406466,3556.1,3556.0,0.002]
[1754301127622,2.02371729,3556.1,3556.0,0.002]
[1754301127934,6.30471729,3556.1,3556.0,0.002]
[1754301129238,9.66678669,3556.1,3556.0,0.002]
[1754301151500,11.35778669,3556.1,3556.0,0.002]
[1754301151649,18.40778669,3556.1,3556.0,0.002]
[1754301151849,21.27603376,3556.1,3556.0,0.002]
[1754301153808,3.36238574,3555.7,3555.6,0.002]
[1754301154102,49.68509434,3555.5,3555.4,0.002]
[1754301154311,3.36317692,3554.7,3554.6,0.002]
[1754301154605,29.21069203,3554.7,3554.6,0.002]
[1754301154811,32.04377439,3554.7,3554.6,0.002]
[1754301155797,27.76377439,3554.7,3554.6,0.002]
[1754301155973,32.04377439,3554.7,3554.6,0.002]
[1754301156294,17.54397692,3554.7,3554.6,0.002]
[1754301158624,19.86210716,3554.7,3554.6,0.002]
[1754301160814,31.49365756,3554.7,3554.6,0.002]
[1754301162386,31.49465756,3554.7,3554.6,0.002]
[1754301162579,19.86310716,3554.7,3554.6,0.002]
[1754301162812,22.13072916,3554.7,3554.6,0.002]
[1754301165187,33.76227956,3554.7,3554.6,0.002]
[1754301165415,22.13072916,3554.7,3554.6,0.002]
[1754301165830,19.86310716,3554.7,3554.6,0.002]
[1754301167424,13.49993024,3554.7,3554.6,0.002]
[1754301168126,13.35913024,3554.7,3554.6,2.81525606]
[1754301168331,13.35913024,3554.7,3554.6,0.002]
[1754301171417,6.59913024,3554.7,3554.6,5.81525606]
[1754301171614,6.59913024,3554.7,3554.6,7.9820711]
[1754301172226,2.31813024,3554.7,3554.6,7.9820711]
[1754301185314,6.59813024,3554.7,3554.6,7.9820711]
[1754301185547,6.59813024,3554.7,3554.6,5.95605606]
[1754301191257,2.31813024,3554.7,3554.6,5.95605606]
[1754301194481,6.59713024,3554.7,3554.6,5.95605606]
[1754301197274,4.279,3554.7,3554.6,5.95605606]
[1754301210358,4.279,3554.7,3554.6,0.002]
[1754301210558,4.707,3554.7,3554.6,0.002]
[1754301211058,4.707,3554.7,3554.6,2.81525606]
[1754301211262,4.279,3554.7,3554.6,2.81525606]
[1754301212390,4.279,3554.7,3554.6,0.002]
[1754301212897,4.279,3554.7,3554.6,2.81525606]
[1754301213666,4.279,3554.7,3554.6,0.002]
[1754301213869,4.4198,3554.7,3554.6,0.002]
[1754301214085,4.86188,3554.7,3554.6,0.002]
[1754301218911,4.89704471,3554.7,3554.6,0.002]
[1754301219121,5.44704471,3554.7,3554.6,0.002]
[1754301219414,8.26022163,3554.7,3554.6,0.002]
[1754301219602,8.22505692,3554.7,3554.6,0.002]
[1754301225012,5.41188,3554.7,3554.6,0.002]
[1754301227898,4.86188,3554.7,3554.6,0.002]
[1754301228814,3.98122163,3554.7,3554.6,0.002]
[1754301229120,8.26022163,3554.7,3554.6,0.002]
[1754301229323,8.22505692,3554.7,3554.6,0.002]
[1754301235925,15.27505692,3554.7,3554.6,0.002]
[1754301236224,34.56260732,3554.7,3554.6,0.002]
[1754301240007,36.72291909,3554.7,3554.6,0.002]
[1754301240208,22.12636869,3554.7,3554.6,0.002]
[1754301242398,37.60918676,3554.7,3554.6,0.002]
[1754301242605,67.60918676,3554.7,3554.6,0.002]
[1754301243810,55.52446106,3554.7,3554.6,0.002]
[1754301243999,55.09136869,3554.7,3554.6,0.002]
[1754301244837,55.97763636,3554.7,3554.6,1e-08]
[1754301246899,55.09136869,3554.7,3554.6,1e-08]
[1754301248840,55.52446106,3554.7,3554.6,1e-08]
[1754301253626,62.28746106,3554.7,3554.6,1e-08]
[1754301256316,62.56926106,3554.7,3554.6,1e-08]
[1754301256558,62.28746106,3554.7,3554.6,1e-08]
[1754301258056,62.74063636,3554.7,3554.6,1e-08]
[1754301259725,62.28746106,3554.7,3554.6,1e-08]
[1754301267045,62.30754399,3554.7,3554.6,1e-08]
[1754301267251,62.28746106,3554.7,3554.6,1e-08]
[1754301267482,62.14666106,3554.7,3554.6,1e-08]
[1754301268200,62.59983636,3554.7,3554.6,1e-08]
[1754301274697,8.01949351,3554.3,3554.2,1e-08]
[1754301274911,64.41313628,3554.3,3554.2,1e-08]
[1754301276097,64.86631158,3554.3,3554.2,1e-08]
[1754301277600,65.00711158,3554.3,3554.2,1e-08]
[1754301280007,64.12084391,3554.3,3554.2,1e-08]
[1754301280214,66.98909098,3554.3,3554.2,1e-08]
[1754301281171,67.87535865,3554.3,3554.2,1e-08]
[1754301281572,69.76034816,3554.3,3554.2,1e-08]
[1754301285177,69.30717286,3554.3,3554.2,1e-08]
[1754301285376,68.87408049,3554.3,3554.2,1e-08]
[1754301285788,49.03653009,3554.3,3554.2,1e-08]
[1754301286113,46.16828302,3554.3,3554.2,1e-08]
[1754301286312,20.86028302,3554.3,3554.2,1e-08]
[1754301286506,21.41028302,3554.3,3554.2,1e-08]
[1754301288923,19.71828302,3554.3,3554.2,1e-08]
[1754301289226,13.90478951,3554.3,3554.2,1e-08]
[1754301289695,13.35478951,3554.3,3554.2,1e-08]
[1754301290221,13.90478951,3554.3,3554.2,1e-08]
[1754301291220,6.30478951,3554.3,3554.2,1e-08]
[1754301295636,9.66828302,3554.3,3554.2,1e-08]
[1754301296387,10.91644841,3554.3,3554.2,1e-08]
[1754301296594,41.34954078,3554.3,3554.2,1e-08]
[1754301297031,63.03109118,3554.3,3554.2,1e-08]
[1754301297218,63.48426648,3554.3,3554.2,1e-08]
[1754301298090,68.14126648,3554.3,3554.2,1e-08]
[1754301298296,20.96644841,3554.3,3554.2,1e-08]
[1754301300239,51.85271608,3554.3,3554.2,1e-08]
[1754301300442,56.50971608,3554.3,3554.2,1e-08]
[1754301303353,56.05654078,3554.3,3554.2,1e-08]
[1754301304063,55.62344841,3554.3,3554.2,1e-08]
[1754301305057,52.65844841,3554.3,3554.2,1e-08]
[1754301306326,59.42244841,3554.3,3554.2,1e-08]
[1754301307466,59.56952434,3554.3,3554.2,1e-08]
[1754301308063,29.42244841,3554.3,3554.2,1e-08]
[1754301309988,32.38744841,3554.3,3554.2,1e-08]
[1754301310184,29.42244841,3554.3,3554.2,1e-08]
[1754301311245,27.73044841,3554.3,3554.2,1e-08]
[1754301311788,29.42244841,3554.3,3554.2,1e-08]
[1754301312285,29.85554078,3554.3,3554.2,1e-08]
[1754301312957,29.42244841,3554.3,3554.2,1e-08]
[1754301313405,26.48228302,3554.3,3554.2,1e-08]
[1754301314094,20.11878951,3554.3,3554.2,1e-08]
[1754301314318,20.66878951,3554.3,3554.2,1e-08]
[1754301314696,13.06878951,3554.3,3554.2,1e-08]
[1754301342142,15.88228302,3554.3,3554.2,1e-08]
[1754301342459,18.30185229,3554.3,3554.2,1e-08]
[1754301350771,16.41686278,3554.3,3554.2,1e-08]
[1754301352015,18.10886278,3554.3,3554.2,1e-08]
[1754301352183,29.74041318,3554.3,3554.2,1e-08]
[1754301352394,59.74041318,3554.3,3554.2,1e-08]
[1754301353408,63.62668085,3554.3,3554.2,1e-08]
[1754301354309,63.17350555,3554.3,3554.2,1e-08]
[1754301354816,65.26058688,3554.3,3554.2,1e-08]
[1754301356310,53.19594411,3554.3,3554.2,1e-08]
[1754301356513,21.10886278,3554.3,3554.2,1e-08]
[1754301357748,51.10886278,3554.3,3554.2,1e-08]
[1754301358019,63.17350555,3554.3,3554.2,1e-08]
[1754301358601,63.62668085,3554.3,3554.2,1e-08]
[1754301359527,38.05581018,3553.9,3553.8,0.002]
[1754301359709,45.34085725,3553.9,3553.8,0.002]
[1754301360105,56.97240765,3553.9,3553.8,0.002]
[1754301360334,57.40550002,3553.9,3553.8,0.002]
[1754301360644,60.37050002,3553.9,3553.8,0.002]
[1754301361640,59.93740765,3553.9,3553.8,0.002]
[1754301362146,62.00153315,3553.9,3553.8,0.002]
[1754301362706,0.55,3552.7,3551.8,5.81546557]
[1754301362920,0.1408,3552.0,3551.9,0.58154656]
[1754301363171,4.4168,3552.0,3551.9,0.58154656]
[1754301363956,4.4168,3552.0,3551.9,6.39694113]
[1754301364121,4.276,3552.0,3551.9,3.72234656]
[1754301364337,4.276,3552.0,3551.9,18.02849153]
[1754301368261,4.276,3552.0,3551.9,6.39694113]
[1754301373042,4.276,3552.0,3551.9,7.24296613]
[1754301374369,4.276,3552.0,3551.9,6.53774113]
[1754301375938,4.276,3552.0,3551.9,7.38375413]
[1754301377247,4.276,3552.0,3551.9,6.53774113]
[1754301378235,4.276,3552.0,3551.9,3.72234656]
[1754301378473,4.276,3552.0,3551.6,0.21569411]
[1754301378776,0.1408,3551.8,3551.5,2.81564245]
[1754301378952,0.1408,3551.8,3551.6,3.0]
[1754301379474,0.1408,3551.8,3551.4,0.20733269]
[1754301379772,0.1408,3551.8,3551.5,0.31639553]
[1754301379976,0.1408,3551.8,3551.6,3.0]
[1754301381183,0.1408,3551.8,3551.5,3.31839553]
[1754301381880,0.1408,3551.8,3551.5,3.13410627]
[1754301383351,0.1408,3551.8,3551.5,0.31839553]
[1754301383552,0.1408,3551.8,3551.7,2.81555311]
[1754301383873,4.276,3551.8,3551.7,2.81555311]
[1754301384177,4.276,3551.8,3551.6,4.02469611]
[1754301384881,4.276,3551.8,3551.6,1.20907459]
[1754301386201,4.276,3551.8,3551.7,2.81555311]
[1754301386381,4.276,3551.8,3551.7,4.7341329]
[1754301390167,0.55,3553.0,3552.2,2.81513593]
[1754301390375,1.90078915,3553.6,3552.0,11.6315504]
[1754301390567,1.90078915,3553.6,3552.1,0.1408]
[1754301390568,0.1408,3552.6,3552.1,0.1408]
[1754301390767,0.1408,3552.6,3552.5,2.81491907]
[1754301392455,0.1408,3552.7,3552.6,2.81483752]
[1754301393859,0.1408,3552.7,3552.6,2.81483983]
[1754301394068,4.4168,3552.7,3552.6,2.81483983]
[1754301394391,4.4168,3552.7,3552.5,6.35397067]
[1754301394593,4.4168,3552.7,3552.6,2.81483983]